{"text_format":"1","workbook":"xlsx","n_sheets":2,"sheets":["Teste de Staff","Registro dos Staffers"],"not_rendered":{"charts":1,"images":1,"macros":1,"external_links":0,"defined_names":1,"comments":0,"pivot_tables":0},"unopened":[],"bounds":{"document_bytes":16777216,"sheet_cells":100000,"rows_first":2000,"rows_last":500,"rows_between":2000,"halvings":0,"cell_chars":16384,"cell_head_chars":4096},"cells_cut":0,"cells_raw":0,"read":"whole","date_system":"1900"}

{"sheet":"Teste de Staff","index":0,"n_rows":112,"n_cols":22,"rows_kept":112,"cut":false,"hidden":false,"merged":[[109,3,110,4],[111,3,111,4],[102,5,102,7],[101,11,101,13],[102,11,102,13],[103,11,103,13],[106,5,106,7],[107,5,107,7],[107,11,107,13],[104,5,104,7],[103,5,103,7],[111,5,111,7],[110,5,110,7],[109,5,109,7],[100,3,106,4],[107,3,108,4],[99,9,99,10],[94,3,98,18],[15,2,15,6],[16,2,16,6],[17,2,17,6],[18,2,18,6],[29,2,29,12],[19,2,19,6],[25,2,25,11],[26,2,26,11],[27,2,27,11],[28,2,28,11],[99,3,99,8],[99,11,99,18],[100,11,100,13],[105,11,105,13],[106,11,106,13],[108,11,108,13],[108,5,108,7],[105,5,105,7],[101,5,101,7],[100,5,100,7],[6,21,9,22],[11,16,12,18],[11,19,12,20],[24,2,24,6],[20,2,20,7],[21,2,21,7],[22,2,22,7],[23,2,23,7],[10,2,10,6],[11,2,11,6],[12,2,12,6],[13,2,13,6],[14,2,14,6],[109,11,109,13],[1,15,1,16],[2,15,2,16],[3,15,3,16],[15,16,15,19],[6,19,9,20],[7,15,7,17],[8,15,8,17],[6,15,6,18],[9,16,9,17],[0,2,5,13],[7,2,7,5],[6,2,6,12],[104,11,104,15],[8,2,8,6],[9,2,9,6]]}
[null,null,"TESTE PARA STAFF INTROCRAFT"]
[null,null,null,null,null,null,null,null,null,null,null,null,null,null,null,"ID:",null,null,null,null,null,925]
[null,null,null,null,null,null,null,null,null,null,null,null,null,null,null,"NICK:",null,null,null,null,null,"BlackBull_"]
[null,null,null,null,null,null,null,null,null,null,null,null,null,null,null,"PUNICOES:",null,null,null,null,null,0]
[]
[]
[null,null,"CALCULO DE NOTA PARA STAFF (Quanto mais EXPLICADO + Pontos)",null,null,null,null,null,null,null,null,null,null,"PONTOS",null,"Pontos Positivos e Negativos",null,null,null,"TOTAL",null,{"$f":"(S10-R4)*4.34782608695652","v":2.6086956521739117}]
[null,null,"Porque voce quer ser Staff?",null,null,null,null,null,null,"Função",null,"Indentificação",null,0.6,null,"PONTOS POSITIVOS",null,null,{"$f":"S10","v":0.6}]
[null,null,"Como funciona e identifica um ForceField?",null,null,null,null,null,null,null,null,null,null,{"$f":"(J9+L9)/2","v":0},null,"PONTOS NEGATIVOS",null,null,{"$f":"23-S10","v":22.4}]
[null,null,"Como funciona e identifica um KillAura?",null,null,null,null,null,null,null,null,null,null,{"$f":"(J10+L10)/2","v":0},null,null,"SOMA DE PONTOS",null,{"$f":"SUM(N8:N30)","v":0.6}]
[null,null,"Como funciona e identifica um AutoSoup?",null,null,null,null,null,null,null,null,null,null,0]
[null,null,"Como funciona e identifica um Regen?",null,null,null,null,null,null,null,null,null,null,0,null,null,"Resultado:",null,null,{"$f":"IF(V7<=60,\"NEGADO\",IF(V7>=81,\"Moderador(a)\",\"Ajudante\"))","v":"NEGADO"}]
[null,null,"Como funciona e identifica um um NoFall?",null,null,null,null,null,null,null,null,null,null,0]
[null,null,"Como funciona e identifica um FastFall?",null,null,null,null,null,null,null,null,null,null,0]
[null,null,"Como funciona e identifica um AntiKnockBack?",null,null,null,null,null,null,null,null,null,null,0]
[null,null,"Como funciona e identifica um TriggerBot?",null,null,null,null,null,null,null,null,null,null,0,null,null,"Grafico de Pontos"]
[null,null,"Como funciona e identifica um JesusHack?",null,null,null,null,null,null,null,null,null,null,0]
[null,null,"Como funciona e identifica um Glide?",null,null,null,null,null,null,null,null,null,null,0]
[null,null,"Como funciona e identifica um Macro?",null,null,null,null,null,null,null,null,null,null,0]
[null,null,"Como funciona e identifica um Inv-Bot?",null,null,null,null,null,null,null,null,null,null,0]
[null,null,"Qual a direfença entre um ForceField e um KillAura?"]
[null,null,"Qual a diferença entre um Regen e um AutoSoup?"]
[null,null,"Qual a diferença entre NoFall e FastFall?"]
[null,null,"Qual a diferença entre Inv-Bot e JesusHack?"]
[null,null,"Cite o Nome de 5 Hacks Clients"]
[null,null,"Você está no Servidor e vê um staffer abusando,o que você faria?"]
[null,null,"Um Moderador te chama para abusar falando que não vai contar nada para ninguém, o que você faria?"]
[null,null,"Um player está floodando no chat, o que você faz?"]
[null,null,"Do nada aparece itens de diamante no seu inventário, o que você faria?"]
[null,null,"Você está jogando e tem um killstreak de 20, e ver um hackreport , o que você faria?"]
[]
[]
[null,null,null,null,null,null,null,null,null,null,null,null,null,null,null,null,null,null,null,{"$f":"S10","v":0.6}]
[null,null,null,null,null,null,null,null,null,null,null,null,null,null,null,null,null,null,null,{"$f":"22-S10","v":21.4}]
[]
[]
[]
[]
[]
[]
[]
[]
[]
[]
[]
[]
[]
[]
[]
[]
[]
[]
[]
[]
[]
[]
[]
[]
[]
[]
[]
[]
[]
[]
[]
[]
[]
[]
[]
[]
[]
[]
[]
[]
[]
[]
[]
[]
[]
[]
[]
[]
[]
[]
[]
[]
[]
[]
[]
[]
[]
[]
[]
[]
[null,null,null,"Teste de Staff IntroCraft"]
[]
[]
[]
[]
[null,null,null,"NOTA E VALOR",null,null,null,null,null,null,null,"Registro Antes de TESTE"]
[null,null,null,"NAO PASSOU",null,"NOOB EM MODERACAO",null,null,0,null,null,"ID DO JOGADOR",null,null,null,null,null,null,925]
[null,null,null,null,null,"NOOB EM MODERACAO",null,null,"1 ate 10",null,null,"Qual sua Nick?",null,null,null,null,null,null,"BlackBull_"]
[null,null,null,null,null,"NOOB EM MODERACAO",null,null,"11 ate 20",null,null,"Quantos Anos Voce tem?",null,null,null,null,null,null,13]
[null,null,null,null,null,"PESSIMO",null,null,"21 ate 30",null,null,"Quanto Tempo Voce Ficaria On?",null,null,null,null,null,null,"8h por dia"]
[null,null,null,null,null,"PESSIMO",null,null,"31 ate 40",null,null,"Voce modera outro Servidor alem do IntroCraft?",null,null,null,null,null,null,"Sim"]
[null,null,null,null,null,"MAIS OU MENOS",null,null,"41 ate 50",null,null,"Voce Ira CUMPRIR com o H on?",null,null,null,null,null,null,"Sim"]
[null,null,null,null,null,"MAIS OU MENOS",null,null,"51 ate 60",null,null,"Punicoes Levadas:",null,null,null,null,null,null,0]
[null,null,null,"AJUDANTE",null,"BOM",null,null,"61 ate 70",null,null,"Data do Teste:",null,null,null,null,null,null,"2015-01-04"]
[null,null,null,null,null,"BOM",null,null,"71 ate 80",null,null,"Skype:",null,null,null,null,null,null,"facebook:gui.rocha.73",null,"IntroCraft Network"]
[null,null,null,"MOD",null,"OTIMO",null,null,"81 ate 90",null,null,"NOTA:",null,null,null,null,null,null,{"$f":"(S10-R4)*4.34782608695652","v":2.6086956521739117},null,"jogar.introcraft.com.br [1.7.x]"]
[null,null,null,null,null,"OTIMO",null,null,"91 ate 99"]
[null,null,null,"ADMIN",null,"PERFEITO! JA ENTROU",null,null,100]

{"sheet":"Registro dos Staffers","index":1,"n_rows":30,"n_cols":10,"rows_kept":30,"cut":false,"hidden":false,"merged":[[29,18,29,19],[7,0,9,9],[29,10,29,11],[1,0,1,4],[3,1,3,2],[3,3,3,4],[29,12,29,13],[29,14,29,15],[29,16,29,17],[1,7,1,11],[3,8,3,9],[3,10,3,11]]}
[]
["Ferramenta de Pesquisa"]
["ID","NICK",null,"SKYPE"]
[15,{"$f":"VLOOKUP(A4,A$10:J$1000015,2,0)","v":{"$error":"#N/A"}},null,{"$f":"VLOOKUP(A4,A$10:J$1000015,9,0)","v":{"$error":"#N/A"}}]
[]
[]
[]
["Registro de TESTES de Staff IntroCraft"]
[]
[]
["ID","NICK","ANOS","FICARIA ON","Servidores","HORARIO","PUNICOES","DATA TESTE","SKYPE","NOTA"]
[]
[39,"zMeel",13,"6h por dia","Não","Sim",0,"2015-10-27","meelmeel10",90.434782608695599]
[48,"Biidu13",13,"1 a 2H","Nao","Sim",0,"2015-09-14","gabrielavilasouza",47.608695652173878]
[52,"ScorpionBrHD",13,"6H","Nao","Sim",0,"2015-09-10","live:isaquersantos",81.086956521739097]
[19,"Vinicius_Gamer2",14,"2 a 4","Nao","Sim",0,"2015-08-31","vinicius.de.moraes79",87.391304347826036]
[10,"Eddersinho",13,"5 Horas por Dia","Nao","Sim",0,"2015-08-21","edder_marin",68.478260869565176]
[40,"Victor_xD",13,"4 Horas","Nao","Sim",0,"2015-07-29","victorgamer_hd2",99.999999999999957]
["**","zRaphaa",13,"3 a 5 Horas",1,"Sim",0,"2015-06-27","raphaboss2002",59.999999999999979]
[35,"_MrArticBR_",15,"3 a 6 Horas",1,"Sim",0,"2015-06-17","predators.gamer",80.434782608695613]
[8,"zFlashOP_",12,"1 a 3 Horas",1,"Sim",0,"2015-06-13","live:caiobelizariu",99.999999999999957]
["**","TaaiowBr",13,"10 Horas",1,"Com Certeza",1,"2015-06-13","ifabiobr_pessoal",94.565217391304301]
[31,"Neon_Br",15,"3 Horas",5,"Sim",0,"2015-06-13","neonpessoal",85.869565217391283]
[51,"TerremotoPvP",11,"3 a 6 Horas",5,"Sim",0,"2015-06-13","thevini.pessoal.pvp",93.478260869565176]
[13,"bernardo189",13,"2 a 3 Horas","Nao","Claro",0,"2015-06-13","zlyonpvp",71.086956521739097]
[12,"LoganhBr",13,"5 a 7 horas por dia",3,"Sim",0,"2015-06-13","ozino.filho",70.652173913043441]
[30,"zNerdy_PvP",10,"3 Horas","Nao","Sim",1,"2015-06-11","isaacsilva831",60.7869565217391]
["**","TESTET",15,"4testets","sim","sim",0,"2015-06-11","tesate.official",100]
[0,"TESTET","teste","4horas","Sim","Sim",0,"2015-06-11","teste",100]
[7,"zIntroPvP",16,"4horas","Sim","Sim",0,"2015-06-11","intro__591_pessoal",100]